bitfinex/quotes_SOLUSD_20241229
["timestamp","ask_amount","ask_price","bid_price","bid_amount"]
[1735484924885,15.99680279,194.0,193.93,15.99680279]
[1735484925255,15.99680279,194.02,193.95,15.99680279]
[1735484925440,7.7983,194.08,193.96,23.776884]
[1735484925640,15.99680279,194.06,193.99,15.99680279]
[1735484926241,15.99680279,194.06,193.98,15.99680279]
[1735484926549,23.79510279,194.08,194.01,15.99680279]
[1735484926755,7.7983,194.08,194.03,15.99680279]
[1735484927062,15.99680279,194.09,194.02,15.99680279]
[1735484928142,15.99680279,194.07,194.0,15.99680279]
[1735484928347,23.776884,194.12,193.99,15.99680279]
[1735484928348,15.99680279,194.06,193.99,15.99680279]
[1735484931764,15.99680279,194.06,193.99,39.77368679]
[1735484931968,15.99680279,194.08,194.01,15.99680279]
[1735484932343,15.99680279,194.07,194.0,15.99680279]
[1735484932543,15.99680279,194.06,193.99,15.99680279]
[1735484933070,20.0,194.09,193.99,15.99680279]
[1735484933247,15.99680279,194.06,193.99,15.99680279]
[1735484933843,15.99680279,194.05,193.98,15.99680279]
[1735484934069,15.99680279,194.04,193.96,15.99680279]
[1735484934276,10.23518396,194.04,193.96,10.23518396]
[1735484934965,10.23518396,194.03,193.96,10.23518396]
[1735484935370,10.23518396,194.02,193.95,10.23518396]
[1735484936851,10.23518396,194.0,193.93,34.01206796]
[1735484937052,10.23518396,193.98,193.89,1.5333]
[1735484937274,7.5727,194.06,193.9,10.23518396]
[1735484937275,10.23518396,193.97,193.9,10.23518396]
[1735484937471,2.83930967,194.08,193.89,10.23518396]
[1735484937472,10.23518396,193.96,193.89,10.23518396]
[1735484937655,10.23518396,193.95,193.88,10.23518396]
[1735484937856,10.23518396,193.96,193.89,10.23518396]
[1735484938790,7.5727,193.99,193.93,10.23518396]
[1735484938993,17.80788396,193.99,193.93,10.23518396]
[1735484939289,10.23518396,193.98,193.91,10.23518396]
[1735484939790,17.80788396,193.99,193.92,10.23518396]
[1735484939999,10.23518396,193.98,193.91,10.23518396]
[1735484940357,10.23518396,193.98,193.88,23.776884]
[1735484940358,10.23518396,193.99,193.92,10.23518396]
[1735484940564,10.23518396,194.01,193.94,10.23518396]
[1735484940784,10.23518396,194.01,193.95,23.776884]
[1735484941095,10.23518396,194.01,193.94,10.23518396]
[1735484941268,10.23518396,194.0,193.93,34.01206796]
[1735484941471,10.23518396,194.0,193.92,1.5333]
[1735484941472,10.23518396,193.99,193.92,11.76848396]
[1735484941796,10.23518396,193.98,193.92,1.5333]
[1735484942358,15.99956834,193.97,193.86,31.5333]
[1735484942580,15.99956834,193.97,193.9,15.99956834]
[1735484943303,15.99956834,193.96,193.9,23.776884]
[1735484943590,15.99956834,193.95,193.88,15.99956834]
[1735484943758,15.99956834,193.94,193.87,15.99956834]
[1735484944084,15.99956834,193.94,193.87,39.77645234]
[1735484945070,15.99956834,193.95,193.88,15.99956834]
[1735484946295,15.99956834,193.94,193.87,39.77645234]
[1735484946789,15.99956834,193.95,193.87,39.77645234]
[1735484947361,15.99956834,193.95,193.88,15.99956834]
[1735484948590,15.99956834,193.97,193.9,15.99956834]
[1735484948887,15.99956834,193.99,193.92,15.99956834]
[1735484949063,15.99956834,194.01,193.93,15.99956834]
[1735484949263,15.99956834,194.01,193.94,15.99956834]
[1735484949464,15.99956834,194.03,193.96,15.99956834]
[1735484950388,15.99956834,194.02,193.95,39.77645234]
[1735484950678,15.99956834,194.03,193.96,15.99956834]
[1735484952482,15.99956834,194.03,193.95,15.99956834]
[1735484954775,23.57226834,194.04,193.96,15.99956834]
[1735484954977,23.57226834,194.04,193.97,23.776884]
[1735484955507,23.57226834,194.04,193.97,15.99956834]
[1735484956592,23.57226834,194.04,193.96,15.99956834]
[1735484957020,15.99956834,194.02,193.95,15.99956834]
[1735484957506,15.99956834,194.03,193.96,39.77645234]
[1735484959400,15.99956834,194.04,193.96,40.54953833]
[1735484959618,15.99956834,194.05,193.99,23.776884]
[1735484960280,15.99956834,194.04,193.97,15.99956834]
[1735484960483,8.1809,194.08,193.93,1.6287]
[1735484960484,15.99956834,194.03,193.96,15.99956834]
[1735484960690,15.99956834,194.02,193.95,15.99956834]
[1735484960907,15.99956834,194.04,193.96,15.99956834]
[1735484961295,15.99956834,194.04,193.97,15.99956834]
[1735484961500,15.99956834,194.06,193.98,15.99956834]
[1735484962503,15.99956834,194.06,193.94,24.549982]
[1735484962504,10.23268422,194.06,193.99,10.23268422]
[1735484963991,10.23268422,194.06,193.99,23.776884]
[1735484964384,10.23268422,194.06,193.99,34.00956822]
[1735484964614,8.1809,194.08,194.0,10.23268422]
[1735484964783,8.1809,194.08,193.97,23.776884]
[1735484964784,8.0542,194.12,194.03,10.23268422]
[1735484964984,10.23268422,194.1,194.03,10.23268422]
[1735484965195,10.23268422,194.09,194.02,10.23268422]
[1735484966413,8.0542,194.12,194.03,10.23268422]
[1735484966414,10.23268422,194.11,194.03,10.23268422]
[1735484966784,10.23268422,194.1,194.03,10.23268422]
[1735484967497,10.23268422,194.09,194.02,10.23268422]
[1735484969102,10.23268422,194.08,194.01,10.23268422]
[1735484970020,10.23268422,194.09,194.02,30.23268422]
[1735484971214,10.23268422,194.1,194.02,30.23268422]
[1735484972421,10.23268422,194.1,194.03,23.776884]
[1735484972602,10.23268422,194.08,194.03,23.776884]
[1735484972799,8.0542,194.12,193.96,0.77278188]
[1735484972800,10.23268422,194.07,193.96,0.77278188]
[1735484973010,10.23268422,194.05,193.97,10.23268422]
[1735484973208,10.23268422,194.03,193.95,10.23268422]
[1735484973617,10.23268422,194.03,193.96,23.776884]
[1735484974218,15.99308383,194.03,193.95,15.99308383]
[1735484974411,15.99308383,194.03,193.96,23.776884]
[1735484975219,15.99308383,194.03,193.97,15.99308383]
[1735484975404,15.99308383,194.04,193.97,15.99308383]
[1735484976718,15.99308383,194.03,193.96,15.99308383]
[1735484977227,15.99308383,194.04,193.96,15.99308383]
[1735484978018,15.99308383,194.03,193.96,15.99308383]
[1735484978919,7.7457,194.02,193.95,15.99308383]
[1735484979119,7.7457,194.02,193.93,15.99308383]
[1735484979120,15.99308383,194.0,193.93,15.99308383]
[1735484979318,15.99308383,193.98,193.91,15.99308383]
[1735484979910,15.99308383,193.99,193.92,15.99308383]
[1735484980612,15.99308383,193.99,193.88,1.5694]
[1735484980613,15.99308383,193.96,193.89,15.99308383]
[1735484981126,15.99308383,193.95,193.88,15.99308383]
[1735484981807,15.99308383,193.94,193.87,15.99308383]
[1735484982820,15.99308383,193.94,193.83,2.34287617]
[1735484982821,15.99308383,193.92,193.85,15.99308383]
[1735484982999,15.99308383,193.91,193.84,15.99308383]
[1735484983394,15.99308383,193.9,193.83,15.99308383]
[1735484984202,15.99308383,193.89,193.82,15.99308383]
[1735484985126,15.99308383,193.9,193.83,15.99308383]
[1735484985320,15.99308383,193.89,193.82,15.99308383]
[1735484986243,15.99308383,193.88,193.81,15.99308383]
[1735484986427,15.99308383,193.87,193.8,15.99308383]
[1735484987830,15.99308383,193.88,193.81,15.99308383]
[1735484988003,15.99308383,193.87,193.8,15.99308383]
[1735484989618,15.99308383,193.91,193.84,15.99308383]
[1735484990020,15.99308383,193.9,193.83,15.99308383]
[1735484992736,15.99308383,193.92,193.85,15.99308383]
[1735484993236,15.99308383,193.91,193.84,35.99308383]
[1735484993439,15.99308383,193.9,193.83,39.76996783]
[1735484995354,15.99308383,193.88,193.81,15.99308383]
[1735484995851,15.99308383,193.88,193.82,23.776884]
[1735484996340,10.25056342,193.88,193.81,10.25056342]
[1735484996547,10.25056342,193.89,193.82,10.25056342]
[1735484996740,10.25056342,193.9,193.83,10.25056342]
[1735484996940,10.25056342,193.89,193.82,10.25056342]
[1735484997240,10.25056342,193.87,193.8,10.25056342]
[1735484997441,10.25056342,193.86,193.79,10.25056342]
[1735484999948,10.25056342,193.87,193.81,10.25056342]
[1735485000832,10.25056342,193.87,193.8,10.25056342]
[1735485001153,10.25056342,193.85,193.78,10.25056342]
[1735485001559,41.00225368,193.9,193.77,10.25056342]
[1735485001560,10.25056342,193.84,193.77,10.25056342]
[1735485002821,41.00225368,193.9,193.78,10.25056342]
[1735485002822,10.25056342,193.85,193.78,10.25056342]
[1735485003021,10.25056342,193.85,193.79,10.25056342]
[1735485004233,10.25056342,193.89,193.82,10.25056342]
[1735485006456,10.25056342,193.88,193.81,10.25056342]
[1735485006967,7.7749,193.93,193.84,10.25056342]
[1735485007263,10.25056342,193.92,193.85,10.25056342]
[1735485007949,10.25056342,193.91,193.84,10.25056342]
[1735485008765,10.25056342,193.89,193.79,20.0]
[1735485009052,10.25056342,193.88,193.81,10.25056342]
[1735485009845,10.25056342,193.89,193.82,10.25056342]
[1735485010557,10.25056342,193.91,193.83,10.25056342]
[1735485011770,10.25056342,193.91,193.84,10.25056342]
[1735485013654,10.25056342,193.9,193.83,30.25056342]
[1735485015244,10.25056342,193.89,193.82,10.25056342]
[1735485015451,10.25056342,193.88,193.81,10.25056342]
[1735485016162,10.25056342,193.89,193.82,10.25056342]
[1735485016338,10.25056342,193.91,193.84,10.25056342]
[1735485016739,10.25056342,193.9,193.83,10.25056342]
[1735485016955,10.25056342,193.9,193.82,10.25056342]
[1735485017160,10.25056342,193.88,193.81,30.25056342]
[1735485017370,10.25056342,193.87,193.8,10.25056342]
[1735485017649,10.25056342,193.88,193.81,10.25056342]
[1735485019561,10.25056342,193.89,193.82,10.25056342]
[1735485019742,10.25056342,193.9,193.83,10.25056342]
[1735485020559,10.25056342,193.89,193.82,10.25056342]
[1735485032673,10.25056342,193.88,193.82,10.25056342]
[1735485032969,10.25056342,193.9,193.83,10.25056342]
[1735485033173,10.25056342,193.89,193.82,10.25056342]
[1735485034888,10.25056342,193.88,193.82,10.25056342]
[1735485035380,7.7749,193.93,193.8,23.776884]
[1735485035381,10.25056342,193.87,193.8,30.25056342]
[1735485035681,10.25056342,193.86,193.79,10.25056342]
[1735485036059,10.25056342,193.87,193.77,20.0]
[1735485036379,10.25056342,193.88,193.81,10.25056342]
[1735485037688,10.25056342,193.87,193.81,10.25056342]
[1735485037894,10.25056342,193.88,193.81,10.25056342]
[1735485039687,7.7749,193.93,193.81,10.25056342]
[1735485039688,7.7749,193.93,193.84,10.25056342]
[1735485039988,7.7749,193.93,193.78,30.0]
[1735485039989,25.92038083,193.93,193.86,10.25056342]
[1735485040385,18.02546342,193.93,193.86,10.25056342]
[1735485040567,18.14548083,193.96,193.89,10.25056342]
[1735485040884,7.89491741,193.96,193.9,10.25056342]
[1735485041062,7.89491741,193.96,193.91,10.25056342]
[1735485041263,7.6973,193.98,193.92,10.25056342]
[1735485042174,17.94786342,193.98,193.91,10.25056342]
[1735485042789,7.6973,193.98,193.92,10.25056342]
[1735485042988,10.25056342,194.0,193.93,10.25056342]
[1735485045385,10.25056342,193.97,193.9,10.25056342]
[1735485045571,10.25056342,193.96,193.9,10.25056342]
[1735485045772,10.25056342,193.98,193.91,10.25056342]
[1735485046365,10.25056342,193.99,193.92,10.25056342]
[1735485046566,10.25056342,194.0,193.93,10.25056342]
[1735485046774,10.25056342,194.0,193.92,10.25056342]
[1735485046986,10.25056342,194.0,193.93,10.25056342]
[1735485048162,10.25056342,193.99,193.92,10.25056342]
[1735485048369,10.25056342,193.98,193.91,10.25056342]
[1735485048666,10.25056342,193.97,193.9,30.25056342]
[1735485048892,7.6973,194.02,193.9,30.25056342]
[1735485048893,10.25056342,193.98,193.91,10.25056342]
[1735485049075,10.25056342,193.99,193.92,10.25056342]
[1735485050391,10.25056342,194.0,193.93,10.25056342]
[1735485050774,7.6973,194.02,193.93,10.25056342]
[1735485051091,17.94786342,194.02,193.95,10.25056342]
[1735485051385,7.6973,194.02,193.96,10.25056342]
[1735485051582,10.25056342,194.03,193.96,10.25056342]
[1735485052095,10.25056342,194.02,193.95,10.25056342]
[1735485052292,10.25056342,194.02,193.93,23.776884]
[1735485052500,10.25056342,194.02,193.94,10.25056342]
[1735485052790,10.25056342,194.02,193.95,10.25056342]
[1735485053877,10.25056342,194.0,193.92,10.25056342]
[1735485054067,10.25056342,193.99,193.91,10.25056342]
[1735485054267,10.25056342,193.99,193.91,30.25056342]
[1735485054467,10.25056342,193.99,193.92,10.25056342]
[1735485054678,10.25056342,194.0,193.93,10.25056342]
[1735485056500,10.25056342,193.99,193.92,10.25056342]
[1735485056680,23.776884,194.05,193.87,1.5477]
[1735485056872,10.25056342,193.96,193.89,10.25056342]
[1735485057378,10.25056342,193.95,193.89,20.0]
[1735485057579,1.6344,193.98,193.89,20.0]
[1735485057580,10.25056342,193.94,193.89,20.0]
[1735485057895,10.25056342,193.92,193.85,10.25056342]
[1735485060373,10.25056342,193.94,193.87,10.25056342]
[1735485060574,23.776884,193.97,193.9,10.25056342]
[1735485060575,34.02744742,193.97,193.9,10.25056342]
[1735485061401,10.25056342,193.96,193.89,10.25056342]
[1735485061999,23.776884,193.96,193.9,10.25056342]
[1735485064499,6.5212,193.99,193.94,10.25056342]
[1735485064682,6.5212,193.99,193.95,10.25056342]
[1735485064879,10.25056342,194.02,193.95,10.25056342]
[1735485064880,23.776884,194.01,193.95,10.25056342]
[1735485065881,10.25056342,194.02,193.95,10.25056342]
[1735485066307,23.776884,194.01,193.95,10.25056342]
[1735485067379,18.40616342,194.03,193.96,10.25056342]
[1735485067586,10.25056342,194.01,193.94,10.25056342]
[1735485067990,18.40616342,194.03,193.96,10.25056342]
[1735485068584,8.1556,194.03,193.95,10.25056342]
[1735485068787,10.25056342,194.02,193.95,10.25056342]
[1735485073305,1.6344,194.03,193.98,10.25056342]
[1735485074404,10.25056342,194.06,193.99,10.25056342]
[1735485074607,6.4921,194.07,194.0,10.25056342]
[1735485074791,6.4921,194.07,194.01,10.25056342]
[1735485075192,1.5177,194.08,194.02,10.25056342]
[1735485075986,6.4921,194.11,194.03,10.25056342]
[1735485076318,10.25056342,194.12,194.05,10.25056342]
[1735485077390,10.25056342,194.09,194.03,10.25056342]
[1735485077591,10.25056342,194.08,194.01,10.25056342]
[1735485077986,23.776884,194.12,194.02,10.25056342]
[1735485078184,10.25056342,194.1,194.03,10.25056342]
[1735485079314,23.776884,194.12,193.97,1.5125]
[1735485079315,10.25056342,194.09,194.02,10.25056342]
[1735485080611,10.25056342,194.09,193.98,20.77292815]
[1735485080815,10.25056342,194.11,194.04,10.25056342]
[1735485081020,10.25056342,194.11,194.05,10.25056342]
[1735485082117,10.25056342,194.11,194.04,10.25056342]
[1735485082318,10.25056342,194.1,194.03,10.25056342]
[1735485082506,10.25056342,194.08,193.97,1.5125]
[1735485082711,10.25056342,194.07,194.0,10.25056342]
[1735485082899,10.25056342,194.08,194.01,10.25056342]
[1735485083304,10.25056342,194.09,194.02,10.25056342]
[1735485085712,10.25056342,194.1,194.03,10.25056342]
[1735485087331,10.25056342,194.1,194.02,10.25056342]
[1735485090327,10.25056342,194.09,194.02,10.25056342]
[1735485091431,10.25056342,194.1,194.03,10.25056342]
[1735485091625,10.25056342,194.11,194.04,10.25056342]
[1735485091814,10.25056342,194.12,194.05,10.25056342]
[1735485092127,11.75556342,194.13,194.03,20.0]
[1735485092305,11.75556342,194.13,194.06,10.25056342]
[1735485092501,10.25056342,194.12,194.05,10.25056342]
[1735485093827,11.75556342,194.13,194.06,10.25056342]
[1735485095909,10.25056342,194.14,194.07,10.25056342]
[1735485096425,10.25056342,194.11,194.0,6.3955]
[1735485096624,10.25056342,194.11,194.04,10.25056342]
[1735485097031,10.25056342,194.12,194.05,10.25056342]
[1735485097731,10.25056342,194.13,194.06,10.25056342]
[1735485099144,10.25056342,194.15,194.08,10.25056342]
[1735485101240,34.02744742,194.14,194.03,20.77273404]
[1735485101453,34.02744742,194.14,194.07,10.25056342]
[1735485102349,10.25056342,194.13,194.03,20.77273404]
[1735485102647,10.25056342,194.12,194.04,10.25056342]
[1735485103726,10.25056342,194.12,194.05,10.25056342]
[1735485104748,23.776884,194.15,194.07,10.25056342]
[1735485104919,10.25056342,194.14,194.07,10.25056342]
[1735485106945,10.25056342,194.15,194.08,10.25056342]
[1735485107148,6.2815,194.16,194.1,10.25056342]
[1735485107347,16.53206342,194.16,194.1,10.25056342]
[1735485107782,6.2815,194.16,194.1,10.25056342]
[1735485108759,16.53206342,194.16,194.1,10.25056342]
[1735485111084,6.6009,194.21,194.11,10.25056342]
[1735485111294,10.25056342,194.19,194.13,10.25056342]
[1735485113378,10.25056342,194.18,194.11,10.25056342]
[1735485113871,10.25056342,194.19,194.12,10.25056342]
[1735485114944,7.8427,194.27,194.18,10.25056342]
[1735485115162,7.8427,194.27,194.22,10.25056342]
[1735485116162,7.89491741,194.28,194.22,10.25056342]
[1735485116354,7.89491741,194.28,194.24,10.25056342]
[1735485116556,7.89491741,194.28,194.23,10.25056342]
[1735485116764,10.25056342,194.29,194.22,10.25056342]
[1735485117267,7.8427,194.32,194.23,10.25056342]
[1735485117570,7.8427,194.32,194.24,10.25056342]
[1735485117571,10.25056342,194.31,194.24,10.25056342]
[1735485118150,10.25056342,194.29,194.14,30.0]
[1735485118352,10.25056342,194.29,194.22,10.25056342]
[1735485119172,10.25056342,194.28,194.21,10.25056342]
[1735485119592,10.25056342,194.29,194.21,10.25056342]
[1735485120581,10.25056342,194.29,194.22,10.25056342]
[1735485122882,10.25056342,194.28,194.21,10.25056342]
[1735485124183,23.776884,194.31,194.21,10.25056342]
[1735485124480,10.25056342,194.29,194.22,10.25056342]
[1735485124686,10.25056342,194.29,194.21,10.25056342]
[1735485125567,10.25056342,194.28,194.21,10.25056342]
[1735485125772,23.776884,194.31,194.18,10.25056342]
[1735485125773,10.25056342,194.25,194.18,10.25056342]
[1735485126070,10.25056342,194.22,194.15,10.25056342]
[1735485126585,10.25056342,194.2,194.13,11.84586342]
[1735485126993,23.776884,194.24,194.08,1.5953]
[1735485126994,10.25056342,194.18,194.08,1.5953]
[1735485127300,10.25056342,194.18,194.11,10.25056342]
[1735485127658,23.776884,194.24,194.1,10.25056342]
[1735485127659,10.25056342,194.17,194.1,10.25056342]
[1735485129268,10.25056342,194.15,194.08,10.25056342]
[1735485129466,10.25056342,194.14,194.07,10.25056342]
[1735485129888,7.6365,194.16,194.08,10.25056342]
[1735485130185,17.88706342,194.16,194.09,10.25056342]
[1735485130993,7.6365,194.16,194.1,10.25056342]
[1735485131181,17.88706342,194.16,194.09,10.25056342]
[1735485133092,17.88706342,194.16,194.08,10.25056342]
[1735485133285,10.25056342,194.15,194.08,10.25056342]
[1735485133469,10.25056342,194.13,194.06,10.25056342]
[1735485133897,10.25056342,194.14,194.07,10.25056342]
[1735485136982,17.88706342,194.16,194.09,10.25056342]
[1735485138073,10.25056342,194.18,194.1,10.25056342]
[1735485138276,10.25056342,194.2,194.13,10.25056342]
[1735485138919,10.25056342,194.19,194.12,10.25056342]
[1735485139598,10.25056342,194.21,194.13,10.25056342]
[1735485139966,10.25056342,194.22,194.15,10.25056342]
[1735485141366,10.25056342,194.23,194.16,10.25056342]
[1735485141585,10.25056342,194.24,194.16,10.25056342]
[1735485143806,10.25056342,194.24,194.17,10.25056342]
[1735485145280,10.25056342,194.21,194.14,10.25056342]
[1735485146427,7.6365,194.27,194.16,10.25056342]
[1735485146611,10.25056342,194.26,194.19,10.25056342]
[1735485146908,10.25056342,194.25,194.18,10.25056342]
[1735485147111,10.25056342,194.24,194.17,10.25056342]
[1735485147708,7.6365,194.27,194.18,10.25056342]
[1735485148011,10.25056342,194.25,194.18,10.25056342]
[1735485150621,34.02744742,194.26,194.18,10.25056342]
[1735485151623,7.6365,194.27,194.19,10.25056342]
[1735485151795,7.6365,194.27,194.2,10.25056342]
[1735485153490,7.6365,194.27,194.21,10.25056342]
[1735485154318,10.25056342,194.28,194.21,10.25056342]
[1735485154530,10.25056342,194.29,194.22,10.25056342]
[1735485155226,10.25056342,194.28,194.21,10.25056342]
[1735485155430,10.25056342,194.26,194.18,10.25056342]
[1735485155594,10.25056342,194.24,194.17,30.25056342]
[1735485155795,10.25056342,194.24,194.16,10.25056342]
[1735485156719,10.25056342,194.24,194.17,10.25056342]
[1735485159327,10.25056342,194.23,194.16,10.25056342]
[1735485159493,18.50036342,194.24,194.17,10.25056342]
[1735485160919,10.25056342,194.23,194.16,10.25056342]
[1735485161461,8.2498,194.24,194.13,10.25056342]
[1735485161462,23.776884,194.19,194.13,10.25056342]
[1735485161590,10.25056342,194.18,194.11,10.25056342]
[1735485161907,10.25056342,194.17,194.1,10.25056342]
[1735485162109,10.25056342,194.18,194.1,20.0]
[1735485162419,10.25056342,194.17,194.11,10.25056342]
[1735485165223,10.25056342,194.15,194.08,10.25056342]
[1735485165634,10.25056342,194.14,194.07,10.25056342]
[1735485167132,10.25056342,194.15,194.08,10.25056342]
[1735485170528,10.25056342,194.14,194.07,10.25056342]
[1735485171240,10.25056342,194.11,194.04,30.25056342]
[1735485172617,10.25056342,194.12,194.05,10.25056342]
[1735485173033,10.25056342,194.11,194.04,30.25056342]
[1735485174424,10.25056342,194.11,194.05,10.25056342]
[1735485176515,23.776884,194.16,194.06,10.25056342]
[1735485176644,10.25056342,194.13,194.07,10.25056342]
[1735485177550,10.25056342,194.13,194.06,10.25056342]
[1735485179647,10.25056342,194.12,194.05,10.25056342]
[1735485189183,14.11406342,194.13,194.06,10.25056342]
[1735485192993,14.11406342,194.13,194.05,10.25056342]
[1735485193681,23.776884,194.16,194.09,10.25056342]
[1735485193682,3.8627,194.16,194.09,10.25056342]
[1735485193885,3.8627,194.16,194.1,10.25056342]
[1735485194854,14.11326342,194.16,194.09,10.25056342]
[1735485195181,10.25056342,194.15,194.09,10.25056342]
[1735485195390,10.25056342,194.13,194.06,10.25056342]
[1735485196264,3.8627,194.16,194.07,10.25056342]
[1735485196477,10.25056342,194.14,194.07,10.25056342]
[1735485197468,10.25056342,194.13,194.05,10.25056342]
[1735485197861,10.25056342,194.13,194.06,10.25056342]
[1735485198064,3.8633,194.14,194.04,20.0]
[1735485198065,14.11386342,194.14,194.07,10.25056342]
[1735485198980,10.25056342,194.15,194.07,10.25056342]
[1735485199575,10.25056342,194.14,194.07,10.25056342]
[1735485201392,12.1124,194.17,194.08,10.25056342]
[1735485201572,10.25056342,194.16,194.08,10.25056342]
[1735485202185,10.25056342,194.13,194.06,10.25056342]
[1735485202368,12.1124,194.17,194.07,10.25056342]
[1735485202369,10.25056342,194.15,194.07,10.25056342]
[1735485203094,12.1124,194.17,194.07,10.25056342]
[1735485203302,10.25056342,194.15,194.07,10.25056342]
[1735485204175,10.25056342,194.14,194.07,10.25056342]
[1735485205791,10.25056342,194.14,194.06,10.25056342]
[1735485205996,10.25056342,194.14,194.05,10.25056342]
[1735485206191,10.25056342,194.11,194.03,10.25056342]
[1735485206575,10.25056342,194.11,194.04,20.0]
[1735485206775,10.25056342,194.11,194.04,34.11709825]
[1735485207285,10.25056342,194.12,194.04,34.11709825]
[1735485207487,10.25056342,194.12,194.04,30.25056342]
[1735485207673,10.25056342,194.13,194.06,10.25056342]
[1735485208273,23.776884,194.16,194.07,10.25056342]
[1735485208473,10.25056342,194.14,194.07,10.25056342]
[1735485209397,10.25056342,194.15,194.08,10.25056342]
[1735485209600,10.25056342,194.16,194.09,10.25056342]
[1735485209974,8.2498,194.17,194.09,10.25056342]
[1735485210173,10.25056342,194.16,194.09,10.25056342]
[1735485212095,7.89491741,194.21,194.1,10.25056342]
[1735485212096,10.25056342,194.18,194.1,10.25056342]
[1735485212405,10.25056342,194.2,194.12,10.25056342]
[1735485212599,10.25056342,194.2,194.13,10.25056342]
[1735485212977,15.79511741,194.22,194.14,10.25056342]
[1735485213179,10.25056342,194.21,194.14,10.25056342]
[1735485213989,7.9002,194.22,194.15,10.25056342]
[1735485214184,10.25056342,194.23,194.16,10.25056342]
[1735485215484,10.25056342,194.21,194.14,10.25056342]
[1735485215683,10.25056342,194.22,194.15,20.0]
[1735485216484,10.25056342,194.23,194.15,30.25056342]
[1735485217281,10.25056342,194.26,194.19,10.25056342]
[1735485217496,10.25056342,194.27,194.19,10.25056342]
[1735485218290,10.25056342,194.26,194.19,10.25056342]
[1735485219591,10.25056342,194.22,194.11,15.789835]
[1735485219910,10.25056342,194.22,194.16,3.85268452]
[1735485220406,10.25056342,194.22,194.15,10.25056342]
[1735485220704,10.25056342,194.22,194.12,23.85268452]
[1735485220908,10.25056342,194.2,194.13,10.25056342]
[1735485222413,10.25056342,194.19,194.12,30.25056342]
[1735485222718,10.25056342,194.18,194.11,10.25056342]
[1735485222881,10.25056342,194.17,194.1,10.25056342]
[1735485224507,10.25056342,194.16,194.09,10.25056342]
[1735485226018,10.25056342,194.17,194.09,10.25056342]
[1735485228808,10.25056342,194.15,194.05,10.250564]
[1735485229013,10.25056342,194.14,194.07,10.25056342]
[1735485231711,10.25056342,194.13,194.06,10.25056342]
[1735485233493,10.25056342,194.13,194.04,20.0]
[1735485233692,7.7921,194.14,194.06,10.25056342]
[1735485233892,10.25056342,194.13,194.06,10.25056342]
[1735485234522,10.25056342,194.12,194.06,10.25056342]
[1735485236723,10.25056342,194.13,194.06,10.25056342]
[1735485239723,10.25056342,194.12,194.01,23.776884]
[1735485239922,10.25056342,194.12,194.06,10.25056342]
[1735485240295,10.25056342,194.13,194.06,10.25056342]
[1735485240490,7.7921,194.14,194.07,10.25056342]
[1735485240720,10.25056342,194.16,194.09,10.25056342]
[1735485241302,10.25056342,194.15,194.08,10.25056342]
[1735485242820,10.25056342,194.15,194.05,23.776884]
[1735485243016,10.25056342,194.15,194.08,10.25056342]
[1735485243213,10.25056342,194.17,194.1,10.25056342]
[1735485244423,10.25056342,194.16,194.09,10.25056342]
[1735485245106,10.25056342,194.15,194.08,10.25056342]
[1735485246900,23.776884,194.19,194.07,20.0]
[1735485246901,10.25056342,194.16,194.09,10.25056342]
[1735485248623,10.25056342,194.16,194.08,10.25056342]
[1735485250626,10.25056342,194.14,194.06,10.25056342]
[1735485250807,10.25056342,194.14,194.0,83.88855368]
[1735485250808,10.25056342,194.14,194.01,0.77281016]
[1735485251009,10.25056342,194.14,194.06,10.25056342]
[1735485252125,10.25056342,194.14,194.03,20.0]
[1735485252126,10.25056342,194.14,194.07,10.25056342]
[1735485254035,10.25056342,194.14,194.06,10.25056342]
[1735485255638,10.25056342,194.14,194.07,10.25056342]
[1735485257335,10.25056342,194.13,194.06,10.25056342]
[1735485261324,10.25056342,194.13,194.07,10.25056342]
[1735485261543,10.25056342,194.14,194.07,10.25056342]
[1735485262055,10.25056342,194.14,194.03,20.0]
[1735485262348,10.25056342,194.12,194.05,10.25056342]
[1735485262555,10.25056342,194.12,193.98,30.0]
[1735485262745,10.25056342,194.12,194.05,10.25056342]
[1735485264154,10.25056342,194.11,194.04,10.25056342]
[1735485267858,10.25056342,194.11,194.05,10.25056342]
[1735485269460,10.25056342,194.11,194.0,23.776884]
[1735485269666,10.25056342,194.11,194.04,10.25056342]
[1735485274266,10.25056342,194.09,193.99,8.77418399]
[1735485274571,10.25056342,194.04,194.0,3.86863305]
[1735485274868,10.25056342,194.03,194.0,3.86863305]
[1735485275260,10.25056342,194.03,193.96,10.25056342]
[1735485275558,10.25056342,194.03,193.97,10.25056342]
[1735485277674,10.25056342,194.04,193.97,10.25056342]
[1735485278047,10.25056342,194.01,193.94,1.6593]
[1735485278279,10.25056342,194.01,193.95,10.25056342]
[1735485278578,10.25056342,194.02,193.95,10.25056342]
[1735485278950,23.776884,194.06,193.97,10.25056342]
[1735485278951,10.25056342,194.04,193.97,10.25056342]
[1735485279151,10.25056342,194.05,193.98,10.25056342]
[1735485284181,23.776884,194.06,193.98,10.25056342]